bitfinex/quotes_ETHUSD_20240907
["timestamp","ask_amount","ask_price","bid_price","bid_amount"]
[1725714016754,3.72358639,2298.8,2298.6,4.35032]
[1725714017294,3.72358639,2298.8,2298.7,4.35028]
[1725714017793,3.72358639,2298.8,2298.7,8.70056]
[1725714019999,3.72358639,2299.1,2298.8,4.35002]
[1725714020151,3.72358639,2299.1,2298.8,4.34996]
[1725714020995,6.00368639,2299.1,2298.4,4.35068]
[1725714021200,3.72358639,2298.7,2298.4,4.35068]
[1725714023703,6.63039,2298.7,2298.2,8.70217]
[1725714023995,3.72358639,2298.5,2298.3,4.35099]
[1725714024706,3.72358639,2298.5,2298.4,4.35085]
[1725714025185,3.72358639,2298.5,2298.4,0.870184]
[1725714025558,3.72358639,2298.5,2298.3,4.35092]
[1725714025892,3.72358639,2298.5,2298.3,8.70186]
[1725714026199,3.72358639,2298.5,2298.4,4.35085]
[1725714027695,3.72358639,2298.5,2298.4,8.7017]
[1725714027900,3.72358639,2298.8,2298.6,4.35035]
[1725714028297,3.72358639,2298.8,2298.6,5.220442]
[1725714029060,3.72358639,2298.8,2298.6,0.870092]
[1725714029257,3.72358639,2298.8,2298.5,4.35056]
[1725714029469,3.72358639,2298.8,2298.3,6.73408]
[1725714029671,3.72358639,2298.4,2298.3,4.35088]
[1725714030672,3.72358639,2298.4,2298.3,8.70192]
[1725714031065,3.72358639,2298.7,2298.5,4.35065]
[1725714031480,3.72358639,2298.7,2298.5,4.35054]
[1725714032101,3.72358639,2298.7,2298.5,8.7011]
[1725714032298,3.72358639,2298.7,2298.5,9.57122]
[1725714032515,3.72358639,2298.7,2298.3,8.70174]
[1725714032681,3.72358639,2298.4,2298.0,4.35158]
[1725714033595,3.72358639,2298.4,2297.9,4.35161]
[1725714033914,3.72358639,2298.1,2297.7,4.35202]
[1725714034096,3.72358639,2298.1,2297.6,4.35233]
[1725714034097,3.72358639,2297.8,2297.6,4.35233]
[1725714034414,3.72358639,2297.8,2297.7,1.108685]
[1725714034622,3.72358639,2297.8,2297.5,4.35253]
[1725714034777,4.35175,2298.0,2297.5,4.35253]
[1725714034778,3.72358639,2297.6,2297.5,4.35253]
[1725714035399,3.72358639,2297.6,2297.3,4.35282]
[1725714035983,3.72358639,2297.4,2297.3,4.35282]
[1725714036376,3.72358639,2297.4,2297.3,0.05233088]
[1725714036576,3.72358639,2297.4,2296.8,3.30203554]
[1725714036577,10.45152639,2297.4,2296.9,4.35354]
[1725714036806,3.72358639,2297.0,2296.9,5.46336]
[1725714037917,3.72358639,2297.2,2296.9,5.46336]
[1725714038124,3.72358639,2297.2,2296.9,5.550425]
[1725714038304,3.72358639,2297.2,2297.0,4.35347]
[1725714038910,3.72358639,2297.2,2296.9,1.10982]
[1725714039217,3.72358639,2297.2,2296.8,4.35373]
[1725714040024,3.72358639,2297.0,2296.6,4.35425]
[1725714040313,3.72358639,2296.8,2296.6,4.35425]
[1725714040487,3.72358639,2296.8,2296.7,0.435425]
[1725714041000,3.72358639,2296.8,2296.6,4.35425]
[1725714042072,3.72358639,2296.8,2296.4,4.35447]
[1725714042714,3.72358639,2296.8,2296.5,4.35435]
[1725714043633,3.72358639,2296.8,2296.6,4.35425]
[1725714044316,3.72358639,2296.8,2296.4,8.70893]
[1725714044547,3.72358639,2296.8,2296.5,0.870893]
[1725714044910,3.72358639,2296.8,2296.5,5.225223]
[1725714045108,3.72358639,2296.8,2296.6,4.35426]
[1725714046110,3.72358639,2296.8,2296.5,0.870893]
[1725714046305,3.72358639,2296.8,2296.5,5.225323]
[1725714046616,3.72358639,2296.8,2296.6,0.05593332]
[1725714048036,3.72358639,2296.8,2296.4,4.35446]
[1725714048251,4.35372,2296.9,2296.7,0.05590069]
[1725714048547,4.35372,2296.9,2296.4,5.225397]
[1725714048548,3.72358639,2296.8,2296.4,5.225397]
[1725714048844,3.72358639,2296.6,2296.4,5.225397]
[1725714049810,3.72358639,2296.6,2296.4,9.579937]
[1725714050143,3.72358639,2296.6,2296.2,4.35488]
[1725714050347,6.13058639,2296.6,2296.0,4.35527]
[1725714050531,6.13058639,2296.6,2295.8,4.35559]
[1725714050532,3.72358639,2296.2,2295.8,4.35559]
[1725714050706,3.0,2296.5,2295.8,5.04333124]
[1725714050707,3.72358639,2296.0,2295.8,5.04333124]
[1725714051055,3.72358639,2295.9,2295.8,0.68774124]
[1725714051604,3.72358639,2295.9,2295.7,4.35596]
[1725714052359,3.72358639,2295.9,2295.6,4.35601]
[1725714052360,6.27,2296.5,2295.8,0.08711077]
[1725714052567,12.45,2296.9,2296.4,4.35464]
[1725714052568,3.72358639,2296.7,2296.4,4.35464]
[1725714052850,3.72358639,2296.5,2296.2,4.35486]
[1725714053004,3.72358639,2296.5,2296.2,4.790346]
[1725714054006,3.72358639,2296.3,2295.8,4.35565]
[1725714054205,3.72358639,2296.1,2295.8,4.35565]
[1725714054426,3.72358639,2296.1,2295.9,4.35547]
[1725714056329,3.72358639,2296.1,2295.8,4.35565]
[1725714056537,3.0,2296.7,2295.5,4.35634]
[1725714056538,3.72358639,2295.9,2295.5,4.35634]
[1725714056872,3.72358639,2295.7,2295.5,5.460426]
[1725714057156,8.07958639,2295.7,2295.2,4.35678]
[1725714057358,3.72358639,2295.3,2295.2,4.35678]
[1725714057560,2.10491889,2295.3,2295.1,4.35701]
[1725714057763,2.10491889,2295.3,2295.1,9.382531]
[1725714057929,2.4543,2295.6,2295.1,9.382531]
[1725714058132,3.72358639,2295.3,2295.1,5.025521]
[1725714058319,3.72358639,2295.3,2295.0,4.35728]
[1725714059659,3.72358639,2295.1,2295.0,4.35729]
[1725714060466,3.72358639,2295.3,2295.1,4.35708]
[1725714060835,3.72358639,2295.3,2294.9,4.35745]
[1725714060836,3.72358639,2295.3,2294.9,8.71475]
[1725714061062,3.72358639,2295.3,2294.9,4.3573]
[1725714061220,3.72358639,2295.1,2294.8,4.35765]
[1725714061423,3.72358639,2295.1,2294.8,5.229216]
[1725714061740,3.72358639,2295.1,2294.9,0.05586114]
[1725714062124,4.3568,2295.3,2295.1,4.35709]
[1725714062125,3.72358639,2295.3,2295.1,4.35709]
[1725714062665,3.72358639,2295.3,2295.2,0.05568602]
[1725714064214,8.08042639,2295.3,2294.6,4.35791]
[1725714064430,4.35684,2295.3,2295.2,0.05568602]
[1725714064625,4.35695,2295.2,2294.7,4.35785]
[1725714064927,3.72358639,2294.9,2294.6,4.35791]
[1725714065217,3.72358639,2294.9,2294.6,8.71586]
[1725714065415,3.72358639,2294.9,2294.7,4.35784]
[1725714066500,3.72358639,2294.9,2294.6,4.35791]
[1725714066708,3.72358639,2294.9,2294.6,8.71586]
[1725714069028,3.72358639,2294.9,2294.6,4.35791]
[1725714069806,3.72358639,2294.9,2294.6,8.71587]
[1725714070018,3.72358639,2294.9,2294.6,4.35791]
[1725714070766,3.72358639,2294.9,2294.6,4.30791]
[1725714071033,3.72358639,2294.7,2294.4,8.71659]
[1725714071221,3.72358639,2294.7,2294.5,4.35824]
[1725714071535,6.00978639,2294.7,2294.3,4.35861]
[1725714072031,6.00978639,2294.7,2294.4,4.35834]
[1725714072727,6.00978639,2294.7,2294.4,4.3584]
[1725714074022,6.00978639,2294.7,2294.5,4.35823]
[1725714074431,3.72358639,2294.7,2294.5,8.71646]
[1725714074656,3.72358639,2294.7,2294.5,4.35823]
[1725714074819,3.72358639,2294.9,2294.5,8.71629]
[1725714075011,3.72358639,2294.9,2294.5,4.35814]
[1725714075417,8.08118639,2294.9,2294.4,4.35828]
[1725714076565,3.72358639,2294.9,2294.5,4.4154903]
[1725714077221,3.72358639,2294.9,2294.5,8.7737303]
[1725714077868,2.2862,2295.0,2294.6,4.35789]
[1725714078030,6.27,2295.2,2295.0,4.35723]
[1725714078218,3.72358639,2295.3,2294.9,4.35747]
[1725714078419,3.72358639,2295.3,2295.1,0.05704562]
[1725714078619,3.72358639,2295.3,2295.0,4.41437399]
[1725714078855,3.72358639,2295.3,2295.2,0.05698725]
[1725714079065,3.72358639,2295.3,2295.1,0.05704562]
[1725714079259,3.72358639,2295.3,2295.2,0.05698725]
[1725714079852,3.72358639,2295.3,2295.2,4.41389725]
[1725714080062,3.72358639,2295.3,2295.2,0.05698725]
[1725714080619,3.72358639,2295.3,2295.2,4.41389725]
[1725714083081,3.72358639,2295.3,2295.2,9.64789498]
[1725714083789,3.72358639,2295.6,2295.2,0.93407498]
[1725714083944,6.27,2295.7,2295.5,4.3562]
[1725714084148,3.72358639,2295.9,2295.6,4.35603]
[1725714084345,3.72358639,2295.9,2295.6,4.41278384]
[1725714084545,4.35578,2295.8,2295.6,0.05675384]
[1725714084742,8.07927639,2295.9,2295.3,4.35662]
[1725714084984,3.72358639,2295.6,2295.4,4.35653]
[1725714085144,3.72358639,2295.6,2295.4,4.41411949]
[1725714088091,3.72358639,2295.6,2295.5,4.35634]
[1725714088576,2.2778,2296.0,2295.8,4.35578]
[1725714088577,3.72358639,2295.9,2295.8,4.35578]
[1725714088778,3.72358639,2295.9,2295.7,4.35596]
[1725714088951,3.72358639,2295.9,2295.8,0.05720201]
[1725714089151,3.72358639,2295.9,2295.7,8.71182]
[1725714089472,3.72358639,2295.9,2295.8,0.05656828]
[1725714090309,2.2778,2295.7,2295.3,4.35656]
[1725714090505,3.72358639,2295.4,2295.3,4.35656]
[1725714091005,3.72358639,2295.6,2295.3,4.35656]
[1725714091520,3.72358639,2295.6,2295.4,4.35644]
[1725714091796,3.72358639,2295.6,2295.4,4.41316461]
[1725714092013,3.72358639,2295.6,2295.4,0.05672461]
[1725714093006,3.72358639,2295.6,2295.4,4.41322461]
[1725714093707,3.72358639,2295.6,2295.5,4.35634]
[1725714094015,3.72358639,2295.6,2295.5,4.41300626]
[1725714095786,6.00708639,2295.9,2295.5,4.41300626]
[1725714096011,6.00708639,2295.9,2295.7,4.35587]
[1725714096531,6.00708639,2295.9,2295.8,0.05649123]
[1725714096690,7.34331603,2295.9,2295.8,0.05649123]
[1725714097023,14.69890603,2295.9,2295.5,4.35621]
[1725714097224,14.69890603,2295.9,2295.3,4.3566]
[1725714097225,3.72358639,2295.6,2295.3,4.3566]
[1725714097378,3.72358639,2295.4,2295.2,4.35691]
[1725714098075,2.2962,2295.5,2295.3,4.35672]
[1725714098489,3.72358639,2295.6,2295.3,4.35672]
[1725714099824,2.2962,2295.7,2295.4,4.35651]
[1725714099983,7.35567,2295.9,2295.6,4.35601]
[1725714099984,5.2962,2295.9,2295.6,4.35601]
[1725714100184,9.01978639,2295.9,2295.6,4.35601]
[1725714101624,6.72358639,2295.9,2295.8,4.35578]
[1725714104223,6.72358639,2295.9,2295.7,4.35596]
[1725714106735,6.72358639,2295.9,2295.8,0.05675665]
[1725714106941,6.72358639,2295.9,2295.8,4.41253665]
[1725714106942,3.72358639,2295.9,2295.8,4.41253665]
[1725714107158,3.72358639,2295.9,2295.8,4.35578]
[1725714107299,3.72358639,2296.2,2295.8,0.88801022]
[1725714107496,3.72358639,2296.2,2296.1,4.35521]
[1725714107833,3.72358639,2296.2,2296.1,4.41179167]
[1725714109804,6.27,2296.8,2296.1,0.05658167]
[1725714110034,6.01978639,2297.3,2297.1,4.35321]
[1725714110241,2.74012626,2297.7,2296.7,0.08706786]
[1725714110242,5.03494026,2297.7,2296.7,0.08706786]
[1725714110544,0.45530171,2297.7,2297.6,4.35236]
[1725714111032,0.45530171,2297.7,2297.6,0.05483465]
[1725714111434,0.45530171,2297.7,2297.6,4.40719465]
[1725714112360,3.72358639,2297.8,2297.6,0.05483465]
[1725714112505,4.35263,2297.5,2296.6,4.35412]
[1725714112702,3.72358639,2297.1,2296.6,4.35412]
[1725714113036,3.72358639,2297.1,2296.7,4.40522005]
[1725714113240,3.72358639,2297.1,2296.8,4.35387]
[1725714113550,3.72358639,2297.1,2296.8,4.40510177]
[1725714114640,3.72358639,2297.1,2296.8,0.05123177]
[1725714114854,3.72358639,2297.1,2296.6,4.35412]
[1725714115162,3.72358639,2297.1,2296.9,0.05117349]
[1725714115304,3.72358639,2297.1,2296.6,4.35412]
[1725714115305,4.77184003,2297.1,2296.6,4.35412]
[1725714115841,4.77184003,2297.1,2296.8,4.35388]
[1725714116142,3.72358639,2297.1,2296.8,4.35388]
[1725714116314,3.72358639,2297.1,2296.9,0.05117349]
[1725714116518,4.96251606,2297.7,2296.9,0.05117349]
[1725714116519,6.27,2297.8,2297.0,2.2948]
[1725714116717,9.99358639,2297.8,2297.4,4.35256]
[1725714117025,3.72358639,2297.8,2297.5,0.05082391]
[1725714117437,3.72358639,2297.8,2297.6,8.70449]
[1725714117607,3.72358639,2297.8,2297.6,4.40299567]
[1725714118543,3.72358639,2297.8,2297.6,8.75525567]
[1725714119046,3.72358639,2297.8,2297.6,4.40299567]
[1725714119364,3.72358639,2297.8,2297.6,8.75525567]
[1725714119707,3.72358639,2297.8,2297.6,4.40299567]
[1725714120048,4.9677769,2297.9,2297.6,8.75523567]
[1725714120349,4.9677769,2297.9,2297.8,4.35198]
[1725714120736,4.9677769,2297.9,2297.8,4.40262919]
[1725714121410,4.9677769,2297.9,2297.8,0.05064919]
[1725714121610,4.9677769,2297.9,2297.7,4.35206]
[1725714121938,4.9677769,2297.9,2297.8,0.05064919]
[1725714122309,4.8677769,2297.9,2297.7,4.35206]
[1725714122615,5.35455459,2297.9,2297.8,0.05016209]
[1725714122919,5.45455459,2297.9,2297.5,4.35239]
[1725714123120,4.9677769,2297.9,2297.8,0.05016209]
[1725714123327,4.9677769,2297.9,2297.5,8.70484]
[1725714123609,4.9677769,2297.9,2297.6,4.35231]
[1725714123838,4.9677769,2297.9,2297.6,0.04988544]
[1725714126815,9.3195769,2297.9,2297.6,0.04988544]
[1725714127013,10.68668759,2297.9,2297.6,0.04988544]
[1725714127433,5.4832,2297.8,2296.9,4.35359]
[1725714127642,4.9677769,2297.0,2296.7,4.35393]
[1725714128140,4.9677769,2297.0,2296.7,8.7079]
[1725714128370,4.9677769,2297.0,2296.8,4.35385]
[1725714128727,4.9677769,2297.0,2296.6,4.35414]
[1725714128959,4.9677769,2296.7,2296.6,4.35414]
[1725714129165,4.9677769,2296.7,2296.1,5.26732156]
[1725714129166,4.9677769,2296.7,2296.4,4.3546]
[1725714129348,4.9677769,2296.7,2296.3,8.70951]
[1725714129672,4.9677769,2296.7,2296.3,0.61144081]
[1725714129831,4.9677769,2296.7,2296.2,4.35494]
[1725714130240,4.9677769,2296.7,2296.3,4.35482]
[1725714131459,4.9677769,2296.7,2296.3,8.70964]
[1725714131770,4.9677769,2296.7,2296.3,4.35482]
[1725714132371,4.9677769,2296.7,2296.2,0.08709525]
[1725714132528,4.9677769,2296.7,2296.5,4.35432]
[1725714133625,4.9677769,2296.7,2296.6,4.35426]
[1725714134326,4.9677769,2297.0,2296.9,4.35369]
[1725714134923,4.9677769,2297.0,2296.6,4.35424]
[1725714134924,7.2401769,2297.0,2296.6,4.35424]
[1725714135267,4.9677769,2296.7,2296.6,4.35424]
[1725714136763,4.9677769,2296.7,2296.6,0.05046742]
[1725714138261,4.9677769,2296.7,2296.4,4.35459]
[1725714138428,4.9677769,2296.7,2296.5,0.05063688]
[1725714139032,4.9677769,2296.7,2296.5,4.40495688]
[1725714139479,4.9677769,2296.7,2296.6,4.35426]
[1725714139629,4.9677769,2297.0,2296.7,4.35406]
[1725714139834,4.9677769,2297.0,2296.9,4.35369]
[1725714140032,3.72769988,2297.2,2297.0,4.3534]
[1725714140373,3.72769988,2297.2,2297.1,4.35331]
[1725714140525,3.72769988,2297.2,2297.1,4.40362284]
[1725714140869,3.72769988,2297.2,2297.1,0.05031284]
[1725714141245,3.72769988,2297.2,2296.8,4.35375]
[1725714141447,3.72769988,2296.9,2296.8,4.35375]
[1725714143846,3.72769988,2297.1,2296.9,4.35357]
[1725714144063,3.72769988,2297.1,2296.8,0.870787]
[1725714144266,6.17379988,2297.1,2296.6,4.35414]
[1725714144448,3.72769988,2296.8,2296.6,4.35414]
[1725714146947,3.72769988,2296.8,2296.6,8.7083]
[1725714147282,3.72769988,2296.8,2296.7,4.35407]
[1725714148148,3.72769988,2296.8,2296.6,4.35414]
[1725714148343,3.72769988,2296.8,2296.6,8.7083]
[1725714148748,3.72769988,2296.8,2296.6,4.35414]
[1725714149986,3.72769988,2296.8,2296.7,4.35407]
[1725714151701,3.72769988,2296.8,2296.7,4.40446203]
[1725714156315,3.72769988,2296.8,2296.7,0.05039203]
[1725714156461,4.35424,2296.7,2296.2,4.3549]
[1725714156663,3.72769988,2296.3,2296.2,8.70981]
[1725714156857,3.72769988,2296.3,2296.2,4.3549]
[1725714158325,3.72769988,2296.3,2296.1,4.35518]
[1725714158496,3.72769988,2296.3,2295.9,4.35543]
[1725714158818,3.72769988,2296.0,2295.9,4.35543]
[1725714158975,3.72769988,2296.0,2295.8,4.35577]
[1725714159180,3.72769988,2295.9,2295.8,4.35577]
[1725714159810,3.72769988,2295.9,2295.7,4.35582]
[1725714160204,3.72769988,2295.9,2295.8,4.35578]
[1725714161422,3.72769988,2295.9,2295.7,4.35582]
[1725714162479,3.72769988,2295.9,2295.5,8.71244]
[1725714162697,6.80425,2296.1,2295.5,8.71244]
[1725714162698,3.72769988,2295.6,2295.5,8.71244]
[1725714162911,3.72769988,2295.6,2295.5,9.831314]
[1725714166928,2.449,2296.1,2295.7,4.35584]
[1725714166929,3.72769988,2295.8,2295.7,4.35584]
[1725714167086,3.72769988,2295.8,2295.7,4.40560406]
[1725714167820,3.72769988,2295.8,2295.7,0.04976406]
[1725714168325,10.39147988,2295.8,2295.7,0.04976406]
[1725714168598,4.35646,2295.5,2295.0,4.35718]
[1725714168728,2.308,2295.4,2294.8,4.35748]
[1725714168936,9.66454,2295.4,2294.9,4.40596213]
[1725714169092,3.72769988,2295.0,2294.9,0.04857213]
[1725714169727,3.72769988,2295.0,2294.9,4.40605213]
[1725714170652,3.72769988,2295.0,2294.9,8.76353213]
[1725714170801,3.72769988,2295.2,2295.1,4.35706]
[1725714171000,3.72769988,2295.2,2295.1,8.71416]
[1725714171244,3.72769988,2295.2,2295.1,8.76261538]
[1725714171932,3.72769988,2295.4,2295.3,8.7134]
[1725714172135,3.72769988,2295.4,2295.3,8.76173866]
[1725714179510,6.20539988,2295.4,2295.3,0.04833866]
[1725714179721,6.57816987,2295.4,2294.9,4.3573]
[1725714179952,3.72769988,2295.0,2294.9,8.71468]
[1725714180512,3.72769988,2295.0,2294.9,4.3573]
[1725714181733,3.72769988,2295.0,2294.9,4.40660717]
[1725714183164,3.72769988,2295.0,2294.9,8.76408717]
[1725714183535,3.72769988,2295.0,2294.9,9.64049589]
[1725714183741,3.72769988,2295.2,2295.1,4.3571]
[1725714184364,3.72769988,2295.2,2295.1,4.40784787]
[1725714184939,3.72769988,2295.2,2295.1,8.76494787]
[1725714185265,3.72769988,2295.4,2295.3,4.35672]
[1725714185667,3.72769988,2295.4,2295.3,8.76413105]
[1725714185961,3.72769988,2295.4,2295.3,4.40741105]
[1725714187365,3.72769988,2295.4,2295.3,0.05069105]
[1725714188745,3.72769988,2295.4,2295.3,4.40741105]
[1725714190768,3.72769988,2295.4,2295.3,8.76413105]
[1725714196758,3.72769988,2295.4,2295.3,9.64054415]
[1725714198352,3.72769988,2295.4,2295.3,8.76413105]
[1725714204560,3.72769988,2295.4,2295.3,10.28166847]
[1725714204763,3.72769988,2295.4,2295.3,4.40741105]
[1725714205585,3.72769988,2295.4,2295.3,5.9249868]
[1725714206188,3.72769988,2295.4,2295.3,5.92498869]
[1725714206550,3.72769988,2295.4,2295.3,4.40741105]
[1725714207166,3.72769988,2295.4,2295.3,5.9250242]
[1725714207386,3.72769988,2295.4,2295.3,10.2817442]
[1725714209342,3.72769988,2295.4,2295.3,5.9250242]
[1725714209980,3.72769988,2295.4,2295.3,10.2817442]
[1725714210284,3.72769988,2295.4,2295.3,8.20143324]
[1725714210646,3.72769988,2295.4,2295.3,12.55815324]
[1725714211286,3.72769988,2295.4,2295.3,8.20142336]
[1725714212154,3.72769988,2295.4,2295.3,5.92501597]
[1725714212355,3.72769988,2295.4,2295.3,0.05069105]
[1725714213480,3.72769988,2295.4,2295.3,1.5683888]
[1725714216170,3.72769988,2295.4,2295.3,1.56837607]
[1725714216556,3.72769988,2295.4,2295.3,3.84491418]
[1725714216894,3.72769988,2295.4,2295.3,3.84490787]
[1725714217600,3.72769988,2295.4,2295.3,1.56837607]
[1725714217911,3.72769988,2295.4,2295.3,14.20172568]
[1725714219187,3.72769988,2295.4,2295.3,14.63892568]
[1725714221215,6.27,2296.0,2295.9,4.35559]
[1725714221383,3.72769988,2296.0,2295.9,4.35559]
[1725714221568,6.82895,2296.4,2296.0,4.35537]
[1725714221773,3.72769988,2296.1,2296.0,4.35537]
[1725714222610,6.72769988,2296.1,2296.0,4.35537]
[1725714223386,3.72769988,2296.1,2296.0,8.71077]
[1725714225600,3.72769988,2296.1,2296.0,4.35537]
[1725714226616,3.72769988,2296.1,2296.0,4.40442853]
[1725714232754,4.34789987,2296.1,2296.0,0.04905853]
[1725714232919,11.70310987,2296.1,2295.6,4.79328]
[1725714233121,11.70310987,2296.1,2295.7,4.40525342]
[1725714233122,3.72769988,2295.8,2295.7,4.40525342]
[1725714234908,3.72769988,2295.8,2295.7,0.04929342]
[1725714237824,6.13149988,2295.8,2295.7,0.04929342]
[1725714239142,3.72769988,2295.8,2295.7,0.04929342]
[1725714240871,4.34084987,2295.8,2295.7,0.04929342]
[1725714241149,11.10054987,2295.8,2295.3,4.35669]
[1725714241353,11.10054987,2295.8,2295.4,0.04781155]
[1725714241523,3.72769988,2295.5,2295.4,0.04781155]
[1725714241729,3.72769988,2295.5,2295.4,4.40434155]
[1725714243251,3.72769988,2295.5,2295.4,8.76087155]
[1725714243456,3.72769988,2295.7,2295.6,8.71218]
[1725714243820,3.72769988,2295.7,2295.6,10.27721136]
[1725714244019,3.72769988,2295.7,2295.6,10.27719852]
[1725714244256,3.72769988,2295.7,2295.6,12.16812818]
[1725714244916,3.72769988,2295.7,2295.6,10.65080451]
[1725714245118,3.72769988,2295.7,2295.6,12.16812953]
[1725714245319,3.72769988,2295.7,2295.6,10.65080451]
[1725714245922,3.72769988,2295.7,2295.6,0.04769485]
[1725714246130,3.72769988,2295.7,2295.6,4.40384485]
[1725714247458,3.72769988,2295.7,2295.6,8.75999485]
[1725714248474,3.72769988,2296.0,2295.9,4.3555]
[1725714248881,3.72769988,2296.0,2295.9,4.40301984]
[1725714257799,3.72769988,2296.0,2295.9,0.04751984]
[1725714257999,4.53598087,2296.0,2295.9,0.04751984]
[1725714258294,4.53598087,2296.0,2295.7,4.35594]
[1725714258499,3.72769988,2296.0,2295.9,0.04735737]
[1725714258893,3.72769988,2296.0,2295.7,4.35594]
[1725714259100,3.72769988,2296.0,2295.9,0.04735737]
[1725714259599,3.72769988,2296.0,2295.7,4.35594]
[1725714259802,3.72769988,2296.0,2295.8,0.04741571]
[1725714260106,3.72769988,2296.0,2295.7,4.35594]
[1725714260348,3.72769988,2296.0,2295.9,0.04735737]
[1725714260829,3.72769988,2296.0,2295.7,4.35594]
[1725714261072,3.72769988,2296.0,2295.9,0.04735737]
[1725714261328,3.72769988,2296.0,2295.8,0.04741571]
[1725714261692,3.72769988,2296.0,2295.7,4.35594]
[1725714261895,4.35511,2296.2,2295.9,0.04725477]
[1725714262093,1.55502536,2296.0,2295.8,0.0473131]
[1725714262429,1.55502536,2295.9,2295.7,4.35588]
[1725714262645,1.55502536,2295.9,2295.8,4.35577]
[1725714263749,1.55502536,2295.9,2295.8,5.8730062]
[1725714263919,1.55502536,2295.9,2295.8,4.35577]
[1725714264319,1.55502536,2295.9,2295.8,5.87305066]
[1725714264533,1.55502536,2295.9,2295.8,4.35577]
[1725714265135,4.01242536,2295.9,2295.7,4.35588]
[1725714265434,4.01242536,2295.9,2295.5,5.27120494]
[1725714265740,4.01242536,2295.9,2295.6,5.87348584]
[1725714265741,1.55502536,2295.7,2295.6,5.87348584]
[1725714266037,3.73254019,2295.7,2295.6,4.35607]
[1725714266428,3.73254019,2295.7,2295.6,5.87353038]
[1725714267624,3.73254019,2295.9,2295.8,4.3557]
[1725714271765,3.73254019,2295.9,2295.8,4.40301308]
[1725714272869,3.0,2296.2,2295.8,0.13442569]
[1725714273033,3.0,2296.2,2296.1,4.35521]
[1725714273034,3.73254019,2296.2,2296.1,4.35521]
[1725714273436,3.73254019,2296.2,2296.1,4.40234811]
[1725714274062,3.73254019,2296.2,2296.1,9.87039292]
[1725714275565,6.27,2296.3,2296.2,4.35502]
[1725714275778,10.00254019,2296.3,2296.2,4.40209979]
[1725714276329,6.27,2296.3,2296.2,4.40209979]
[1725714276536,2.2574,2296.8,2296.5,4.35434]
[1725714276780,3.73254019,2296.6,2296.5,4.35434]
[1725714278035,2.2574,2296.8,2296.5,4.35434]
[1725714278266,3.73254019,2296.6,2296.5,4.35434]
[1725714280777,5.98994019,2296.6,2296.2,4.35497]
[1725714280966,3.73254019,2296.3,2296.2,8.70994]
[1725714282180,4.10579421,2296.3,2296.0,2.27545146]
[1725714282380,2.2574,2296.2,2295.9,4.35557]
[1725714282552,3.73254019,2296.1,2295.9,4.35548]
[1725714283593,3.73254019,2296.1,2295.7,10.98747933]
[1725714283741,3.73254019,2295.8,2295.7,6.63164933]
[1725714283942,3.73254019,2295.8,2295.7,5.8730241]
[1725714285886,3.73254019,2295.8,2295.7,10.2289841]
[1725714286057,3.73254019,2296.0,2295.9,4.35544]
[1725714286253,6.61215,2296.4,2295.9,4.35544]
[1725714286457,3.73254019,2296.1,2295.9,4.35544]
[1725714286685,3.73254019,2296.1,2296.0,0.04696563]
[1725714287594,3.73254019,2296.1,2296.0,8.75776563]
[1725714292457,3.73254019,2296.1,2296.0,0.04696563]
[1725714292660,3.73254019,2296.1,2295.8,4.35564]
[1725714292884,3.73254019,2296.1,2296.0,0.04691684]
[1725714293193,3.73254019,2296.1,2295.9,4.40246517]
[1725714293363,3.73254019,2296.1,2296.0,0.04691684]
[1725714294777,3.73254019,2296.1,2296.0,4.40231684]
[1725714296494,3.73254019,2296.1,2296.0,9.86108804]
[1725714297359,3.73254019,2296.1,2296.0,18.00897949]
[1725714297558,3.73254019,2296.1,2296.0,18.00898967]
[1725714298154,3.73254019,2296.1,2296.0,15.73349691]
[1725714298811,8.7332,2296.7,2296.5,4.35445]
[1725714299103,3.73254019,2296.6,2296.5,8.7089]
[1725714301064,3.73254019,2296.6,2296.5,10.015273]
[1725714301697,3.73254019,2296.6,2296.5,10.06109486]
[1725714301853,3.73254019,2296.6,2296.5,14.41554486]
[1725714302667,3.73254019,2296.8,2296.7,13.06221]
[1725714303000,3.73254019,2296.8,2296.7,14.54935576]
[1725714304525,3.73254019,2297.0,2296.9,8.70738]
[1725714304740,3.73254019,2297.0,2296.9,13.06107]
[1725714305041,3.73254019,2297.2,2297.1,8.70662]
[1725714305237,6.27,2297.6,2297.3,2.3557]
[1725714305386,6.27,2297.6,2297.5,13.05765]
[1725714305785,6.27,2297.6,2297.5,13.10264139]
[1725714307221,6.27,2297.6,2297.5,8.75009139]
[1725714307418,12.46574019,2297.6,2297.5,4.39754139]
[1725714307924,10.00254019,2297.6,2297.5,8.75009139]
[1725714308085,10.00254019,2297.6,2297.5,4.39754139]
[1725714308283,3.73254019,2297.6,2297.5,4.39754139]
[1725714314620,3.73254019,2297.6,2297.5,0.04499139]
[1725714316088,10.92835421,2297.6,2297.5,0.04499139]
[1725714316333,4.35257,2297.5,2297.0,4.3534]
[1725714316492,3.73254019,2297.1,2297.0,4.3534]
[1725714317609,3.73254019,2297.1,2296.9,4.3536]
[1725714317790,3.73254019,2297.1,2297.0,4.3535]
[1725714319027,3.73254019,2297.1,2296.9,4.3536]
[1725714320066,3.73254019,2297.1,2296.9,4.35359]
[1725714320244,3.73254019,2297.1,2297.0,4.3535]
[1725714321060,3.73254019,2297.1,2296.9,4.35359]
[1725714322802,3.73254019,2297.1,2297.0,4.3535]
[1725714327481,3.73254019,2297.1,2297.0,5.224208]
[1725714327662,3.73254019,2297.1,2296.9,4.35358]
[1725714327866,3.73254019,2297.1,2296.9,8.70716]
[1725714328056,3.73254019,2297.1,2297.0,4.3535]
[1725714329062,3.73254019,2297.1,2296.9,4.35358]
[1725714330493,3.73254019,2297.1,2296.9,8.70717]
[1725714330695,3.73254019,2297.1,2296.9,4.35358]
[1725714331402,3.73254019,2297.1,2297.0,4.3535]
[1725714331764,3.73254019,2297.1,2297.0,4.39916367]
[1725714332164,3.73254019,2297.1,2297.0,4.55994086]
[1725714333999,2.499,2297.4,2297.1,4.35328]
[1725714334199,3.73254019,2297.2,2297.0,4.55994086]
[1725714334403,3.73254019,2297.2,2297.0,4.3535]
[1725714334987,3.73254019,2297.2,2297.0,4.35337]
[1725714336072,3.73254019,2297.2,2297.1,4.35331]
[1725714338731,3.73254019,2297.2,2297.0,4.3535]
[1725714340385,3.73254019,2297.2,2297.0,4.3534]
[1725714341132,3.73254019,2297.2,2297.1,4.35331]
[1725714341921,3.73254019,2297.2,2297.0,4.3534]
[1725714342134,3.73254019,2297.2,2297.0,8.70678]